fUSD/lending_fUSD_20250911
["ID","MTS","AMOUNT","RATE_DAILY","PERIOD"]
[384952316,1757633479722,-400.0,0.00027671,7]
[384952317,1757633479731,-400.0,0.00027671,7]
[384952318,1757633479741,-400.0,0.00027671,7]
[384952319,1757633479750,-647.42,0.00027671,7]
[384952320,1757633479759,-698.12,0.00027671,7]
[384952321,1757633479768,-1259.47,0.00027671,7]
[384952322,1757633479778,-400.0,0.00027671,7]
[384952323,1757633479787,-151.0,0.00027671,7]
[384952324,1757633479796,-1361.45,0.00027671,7]
[384952325,1757633479805,-400.0,0.00027671,7]
[384952326,1757633479815,-151.0,0.00027671,7]
[384952327,1757633479824,-978.1,0.00027671,7]
[384952328,1757633479833,-151.0,0.00027671,7]
[384952329,1757633479843,-1108.2,0.00027671,7]
[384952330,1757633479852,-202.9577,0.00027671,7]
[384952331,1757633479861,-400.0,0.00027671,7]
[384952332,1757633479871,-151.0,0.00027671,7]
[384952333,1757633479880,-492.45,0.00027671,7]
[384952334,1757633479889,-350.25250039,0.00027671,7]
[384952335,1757633479898,-151.0,0.00027671,7]
[384952336,1757633479907,-400.0,0.00027671,7]
[384952337,1757633479917,-968.72,0.00027671,7]
[384952338,1757633479931,-202.9577,0.00027671,7]
[384952339,1757633479940,-492.45,0.00027671,7]
[384952340,1757633479950,-910.733726,0.00027671,7]
[384952341,1757633479959,-400.0,0.00027671,7]
[384952342,1757633479969,-162.081346,0.00027671,7]
[384952343,1757633479978,-202.9577,0.00027671,7]
[384952344,1757633479987,-568.98,0.00027671,7]
[384952345,1757633479998,-400.0,0.00027671,7]
[384952346,1757633480009,-151.0,0.00027671,7]
[384952347,1757633480018,-400.0,0.00027671,7]
[384952348,1757633480027,-492.45,0.00027671,7]
[384952349,1757633480037,-910.733726,0.00027671,7]
[384952350,1757633480046,-151.0,0.00027671,7]
[384952351,1757633480055,-492.45,0.00027671,7]
[384952352,1757633480065,-400.0,0.00027671,7]
[384952353,1757633480074,-455.43,0.00027671,7]
[384952354,1757633480083,-910.733726,0.00027671,7]
[384952355,1757633480092,-400.0,0.00027671,7]
[384952356,1757633480101,-151.0,0.00027671,7]
[384952357,1757633480110,-1514.27,0.00027671,7]
[384952358,1757633480119,-593.91,0.00027671,7]
[384952359,1757633480128,-910.733734,0.00027671,7]
[384952360,1757633480138,-400.0,0.00027671,7]
[384952361,1757633480147,-1165.07,0.00027671,7]
[384952362,1757633480156,-400.0,0.00027671,7]
[384952363,1757633480165,-400.0,0.00027671,7]
[384952364,1757633480175,-215.914868,0.00027671,7]
[384952365,1757633480184,-400.0,0.00027671,7]
[384952366,1757633480193,-409.02020799,0.00027671,7]
[384952367,1757633480202,-215.914868,0.00027671,7]
[384952368,1757633480211,-202.957698,0.00027671,7]
[384952369,1757633480221,-1245.93,0.00027671,7]
[384952370,1757633480230,-215.914868,0.00027671,7]
[384952371,1757633480239,-400.0,0.00027671,7]
[384952372,1757633480248,-162.558066,0.00027671,7]
[384952373,1757633480258,-215.914873,0.00027671,7]
[384952374,1757633480267,-400.0,0.00027671,7]
[384952375,1757633480277,-400.0,0.00027671,7]
[384952376,1757633480286,-151.0,0.00027671,7]
[384952377,1757633480296,-162.558066,0.00027671,7]
[384952378,1757633480305,-400.0,0.00027671,7]
[384952379,1757633480315,-422.00793435,0.00027671,7]
[384952380,1757633480324,-162.558066,0.00027671,7]
[384952381,1757633480334,-1080.41,0.00027671,7]
[384952382,1757633480343,-1199.29,0.00027671,7]
[384952383,1757633480353,-443.85,0.00027671,7]
[384952384,1757633480362,-162.558073,0.00027671,7]
[384952385,1757633480371,-400.0,0.00027671,7]
[384952386,1757633480380,-197.736316,0.00027671,7]
[384952387,1757633480389,-400.0,0.00027671,7]
[384952388,1757633480398,-400.0,0.00027671,7]
[384952389,1757633480407,-1223.15,0.00027671,7]
[384952390,1757633480417,-1507.47,0.00027671,7]
[384952391,1757633480425,-400.0,0.00027671,7]
[384952392,1757633480433,-1390.09,0.00027671,7]
[384952393,1757633480443,-1314.63,0.00027671,7]
[384952394,1757633480453,-400.0,0.00027671,7]
[384952395,1757633480462,-346.61200502,0.00027671,7]
[384952396,1757633480472,-400.0,0.00027671,7]
[384952397,1757633480482,-400.0,0.00027671,7]
[384952398,1757633480491,-400.0,0.00027671,7]
[384952399,1757633480500,-400.0,0.00027671,7]
[384952400,1757633480509,-429.56,0.00027671,7]
[384952401,1757633480519,-676.11,0.00027671,7]
[384952402,1757633480529,-400.0,0.00027671,7]
[384952403,1757633480538,-933.51,0.00027671,7]
[384952404,1757633480547,-403.06,0.00027671,7]
[384952405,1757633480556,-295.31663156,0.00027671,7]
[384952406,1757633480566,-1035.3,0.00027671,7]
[384952407,1757633480576,-1055.14,0.00027671,7]
[384952408,1757633480585,-400.0,0.00027671,7]
[384952409,1757633480594,-400.0,0.00027671,7]
[384952410,1757633480603,-1072.69,0.00027671,7]
[384952411,1757633480612,-400.0,0.00027671,7]
[384952412,1757633480621,-400.0,0.00027671,7]
[384952413,1757633480630,-400.0,0.00027671,7]
[384952414,1757633480639,-400.0,0.00027671,7]
[384952415,1757633480649,-400.0,0.00027671,7]
[384952416,1757633480658,-400.0,0.00027671,7]
[384952417,1757633480667,-400.0,0.00027671,7]
[384952418,1757633480676,-400.0,0.00027671,7]
[384952419,1757633480685,-400.0,0.00027671,7]
[384952420,1757633480695,-1354.49,0.00027671,7]
[384952421,1757633480704,-400.0,0.00027671,7]
[384952422,1757633480713,-400.0,0.00027671,7]
[384952423,1757633480723,-400.0,0.00027671,7]
[384952424,1757633480733,-400.0,0.00027671,7]
[384952425,1757633480743,-836.58,0.00027671,7]
[384952426,1757633480753,-1103.91,0.00027671,7]
[384952427,1757633480763,-1130.25,0.00027671,7]
[384952428,1757633480772,-400.0,0.00027671,7]
[384952429,1757633480781,-400.0,0.00027671,7]
[384952430,1757633480791,-401.95930572,0.00027671,7]
[384952431,1757633480801,-400.0,0.00027671,7]
[384952432,1757633480811,-1663.99,0.00027671,7]
[384952433,1757633480820,-400.0,0.00027671,7]
[384952434,1757633480830,-400.0,0.00027671,7]
[384952435,1757633480840,-400.0,0.00027671,7]
[384952436,1757633480849,-400.0,0.00027671,7]
[384952437,1757633480858,-400.0,0.00027671,7]
[384952438,1757633480868,-540.94,0.00027671,7]
[384952439,1757633480877,-400.0,0.00027671,7]
[384952440,1757633480886,-400.0,0.00027671,7]
[384952441,1757633480895,-400.0,0.00027671,7]
[384952442,1757633480905,-402.15672823,0.00027671,7]
[384952443,1757633480915,-569.94,0.00027671,7]
[384952444,1757633480924,-1453.75,0.00027671,7]
[384952445,1757633480934,-419.084884,0.00027671,7]
[384952446,1757633480943,-1044.97,0.00027671,7]
[384952447,1757633480952,-400.0,0.00027671,7]
[384952448,1757633480962,-400.0,0.00027671,7]
[384952449,1757633480972,-400.0,0.00027671,7]
[384952450,1757633480981,-407.27818754,0.00027671,7]
[384952451,1757633480990,-400.0,0.00027671,7]
[384952452,1757633480999,-861.3,0.00027671,7]
[384952453,1757633481007,-400.0,0.00027671,7]
[384952454,1757633481017,-506.39,0.00027671,7]
[384952455,1757633481027,-1016.72,0.00027671,7]
[384952456,1757633481036,-673.34,0.00027671,7]
[384952457,1757633481044,-722.58,0.00027671,7]
[384952458,1757633481054,-400.0,0.00027671,7]
[384952459,1757633481063,-400.0,0.00027671,7]
[384952460,1757633481072,-400.0,0.00027671,7]
[384952461,1757633481080,-319.79723135,0.00027671,7]
[384952462,1757633481089,-400.0,0.00027671,7]
[384952463,1757633481098,-755.45,0.00027671,7]
[384952464,1757633481107,-400.0,0.00027671,7]
[384952465,1757633481116,-1392.38,0.00027671,7]
[384952466,1757633481125,-688.74,0.00027671,7]
[384952467,1757633481134,-835.25,0.00027671,7]
[384952468,1757633481143,-1071.53,0.00027671,7]
[384952469,1757633481152,-514.55,0.00027671,7]
[384952470,1757633481161,-400.0,0.00027671,7]
[384952471,1757633481170,-816.22,0.00027671,7]
[384952472,1757633481179,-400.0,0.00027671,7]
[384952473,1757633481188,-932.79,0.00027671,7]
[384952474,1757633481197,-1697.84,0.00027671,7]
[384952475,1757633481207,-1128.02,0.00027671,7]
[384952476,1757633481216,-1395.9,0.00027671,7]
[384952477,1757633481225,-400.0,0.00027671,7]
[384952478,1757633481235,-400.0,0.00027671,7]
[384952479,1757633481244,-1126.95,0.00027671,7]
[384952480,1757633481253,-400.0,0.00027671,7]
[384952481,1757633481263,-400.0,0.00027671,7]
[384952482,1757633481272,-400.0,0.00027671,7]
[384952483,1757633481281,-400.0,0.00027671,7]
[384952484,1757633481291,-425.91,0.00027671,7]
[384952485,1757633481302,-400.0,0.00027671,7]
[384952486,1757633481312,-962.07,0.00027671,7]
[384952487,1757633481321,-400.0,0.00027671,7]
[384952488,1757633481329,-400.0,0.00027671,7]
[384952489,1757633481338,-428.25,0.00027671,7]
[384952490,1757633481347,-400.0,0.00027671,7]
[384952491,1757633481356,-1242.86,0.00027671,7]
[384952492,1757633481364,-1114.81,0.00027671,7]
[384952493,1757633481373,-400.0,0.00027671,7]
[384952494,1757633481382,-1120.66,0.00027671,7]
[384952495,1757633481391,-400.0,0.00027671,7]
[384952496,1757633481401,-1168.38,0.00027671,7]
[384952497,1757633481410,-475.94,0.00027671,7]
[384952498,1757633481419,-566.16,0.00027671,7]
[384952499,1757633481428,-669.71,0.00027671,7]
[384952500,1757633481437,-400.0,0.00027671,7]
[384952501,1757633481446,-400.0,0.00027671,7]
[384952502,1757633481455,-400.0,0.00027671,7]
[384952503,1757633481464,-687.42,0.00027671,7]
[384952504,1757633481474,-400.0,0.00027671,7]
[384952505,1757633481484,-400.0,0.00027671,7]
[384952506,1757633481493,-783.77,0.00027671,7]
[384952507,1757633481502,-1220.98,0.00027671,7]
[384952508,1757633481511,-706.87,0.00027671,7]
[384952509,1757633481521,-1304.66,0.00027671,7]
[384952510,1757633481530,-543.67,0.00027671,7]
[384952511,1757633481540,-400.0,0.00027671,7]
[384952512,1757633481549,-400.0,0.00027671,7]
[384952513,1757633481558,-400.0,0.00027671,7]
[384952514,1757633481568,-400.0,0.00027671,7]
[384952515,1757633481577,-400.0,0.00027671,7]
[384952516,1757633481587,-1017.54,0.00027671,7]
[384952517,1757633481596,-400.0,0.00027671,7]
[384952518,1757633481605,-400.0,0.00027671,7]
[384952519,1757633481615,-400.0,0.00027671,7]
[384952520,1757633481624,-1010.45,0.00027671,7]
[384952521,1757633481633,-400.0,0.00027671,7]
[384952522,1757633481643,-411.58,0.00027671,7]
[384952523,1757633481652,-400.0,0.00027671,7]
[384952524,1757633481662,-436.9,0.00027671,7]
[384952525,1757633481671,-421.66467221,0.00027671,7]
[384952526,1757633481681,-1203.98,0.00027671,7]
[384952527,1757633481691,-400.0,0.00027671,7]
[384952528,1757633481701,-400.0,0.00027671,7]
[384952529,1757633481710,-1182.03,0.00027671,7]
[384952530,1757633481720,-400.0,0.00027671,7]
[384952531,1757633481730,-400.0,0.00027671,7]
[384952532,1757633481739,-1451.67,0.00027671,7]
[384952533,1757633481748,-978.41,0.00027671,7]
[384952534,1757633481758,-1642.45,0.00027671,7]
[384952535,1757633481767,-400.0,0.00027671,7]
[384952536,1757633481776,-400.0,0.00027671,7]
[384952537,1757633481786,-1921.44,0.00027671,7]
[384952538,1757633481795,-400.0,0.00027671,7]
[384952539,1757633481805,-400.0,0.00027671,7]
[384952540,1757633481814,-400.0,0.00027671,7]
[384952541,1757633481824,-400.0,0.00027671,7]
[384952542,1757633481834,-1357.4,0.00027671,7]
[384952543,1757633481843,-1129.64,0.00027671,7]
[384952544,1757633481853,-1403.43,0.00027671,7]
[384952545,1757633481863,-415.39,0.00027671,7]
[384952546,1757633481873,-400.0,0.00027671,7]
[384952547,1757633481882,-400.0,0.00027671,7]
[384952548,1757633481891,-1127.73,0.00027671,7]
[384952549,1757633481901,-400.0,0.00027671,7]
[384952550,1757633481910,-400.0,0.00027671,7]
[384952551,1757633481923,-400.0,0.00027671,7]
[384952552,1757633481932,-863.75,0.00027671,7]
[384952553,1757633481942,-801.85,0.00027671,7]
[384952554,1757633481951,-400.0,0.00027671,7]
[384952555,1757633481961,-515.73,0.00027671,7]
[384952556,1757633481971,-579.29,0.00027671,7]
[384952557,1757633481980,-400.0,0.00027671,7]
[384952558,1757633481990,-1347.07,0.00027671,7]
[384952559,1757633481999,-951.97,0.00027671,7]
[384952560,1757633482009,-1027.64,0.00027671,7]
[384952561,1757633482019,-675.51,0.00027671,7]
[384952562,1757633482028,-400.0,0.00027671,7]
[384952563,1757633482038,-475.39,0.00027671,7]
[384952564,1757633482048,-400.0,0.00027671,7]
[384952565,1757633482059,-400.1559624,0.00027671,7]
[384952566,1757633482070,-400.0,0.00027671,7]
[384952567,1757633482079,-751.78,0.00027671,7]
[384952568,1757633482089,-1162.24,0.00027671,7]
[384952569,1757633482098,-400.0,0.00027671,7]
[384952570,1757633482108,-400.0,0.00027671,7]
[384952571,1757633482117,-610.88,0.00027671,7]
[384952572,1757633482127,-1829.98,0.00027671,7]
[384952573,1757633482137,-1338.64,0.00027671,7]
[384952574,1757633482146,-400.0,0.00027671,7]
[384952575,1757633482155,-400.0,0.00027671,7]
[384952576,1757633482165,-532.1,0.00027671,7]
[384952577,1757633482175,-400.0,0.00027671,7]
[384952578,1757633482184,-400.0,0.00027671,7]
[384952579,1757633482194,-1207.66,0.00027671,7]
[384952580,1757633482203,-400.0,0.00027671,7]
[384952581,1757633482213,-400.0,0.00027671,7]
[384952582,1757633482222,-1509.88,0.00027671,7]
[384952583,1757633482232,-485.44026334,0.00027671,7]
[384952584,1757633482242,-1345.49,0.00027671,7]
[384952585,1757633482252,-721.91,0.00027671,7]
[384952586,1757633482262,-400.0,0.00027671,7]
[384952587,1757633482272,-1071.35,0.00027671,7]
[384952588,1757633482281,-952.16,0.00027671,7]
[384952589,1757633482291,-400.0,0.00027671,7]
[384952590,1757633482300,-795.13,0.00027671,7]
[384952591,1757633482310,-335.34951068,0.00027671,7]
[384952592,1757633482319,-400.0,0.00027671,7]
[384952593,1757633482330,-914.46,0.00027671,7]
[384952594,1757633482339,-1471.32,0.00027671,7]
[384952595,1757633482348,-400.0,0.00027671,7]
[384952596,1757633482358,-752.2,0.00027671,7]
[384952597,1757633482368,-400.0,0.00027671,7]
[384952598,1757633482378,-401.61,0.00027671,7]
[384952599,1757633482388,-896.88,0.00027671,7]
[384952600,1757633482397,-400.0,0.00027671,7]
[384952601,1757633482407,-400.0,0.00027671,7]
[384952602,1757633482416,-400.0,0.00027671,7]
[384952603,1757633482425,-400.0,0.00027671,7]
[384952604,1757633482435,-400.0,0.00027671,7]
[384952605,1757633482445,-400.0,0.00027671,7]
[384952606,1757633482455,-400.0,0.00027671,7]
[384952607,1757633482465,-400.0,0.00027671,7]
[384952608,1757633482475,-470.55,0.00027671,7]
[384952609,1757633482484,-1192.17,0.00027671,7]
[384952610,1757633482494,-400.0,0.00027671,7]
[384952611,1757633482504,-400.0,0.00027671,7]
[384952612,1757633482514,-1028.3,0.00027671,7]
[384952613,1757633482523,-400.0,0.00027671,7]
[384952614,1757633482533,-924.78,0.00027671,7]
[384952615,1757633482543,-400.0,0.00027671,7]
[384952616,1757633482552,-400.0,0.00027671,7]
[384952617,1757633482562,-1333.95,0.00027671,7]
[384952618,1757633482572,-400.0,0.00027671,7]
[384952619,1757633482582,-400.0,0.00027671,7]
[384952620,1757633482592,-1316.83,0.00027671,7]
[384952621,1757633482601,-400.0,0.00027671,7]
[384952622,1757633482611,-1022.6,0.00027671,7]
[384952623,1757633482621,-400.0,0.00027671,7]
[384952624,1757633482631,-400.0,0.00027671,7]
[384952625,1757633482641,-867.09,0.00027671,7]
[384952626,1757633482651,-717.0,0.00027671,7]
[384952627,1757633482660,-1990.33,0.00027671,7]
[384952628,1757633482670,-400.0,0.00027671,7]
[384952629,1757633482680,-400.0,0.00027671,7]
[384952630,1757633482689,-400.0,0.00027671,7]
[384952631,1757633482698,-400.0,0.00027671,7]
[384952632,1757633482708,-733.5,0.00027671,7]
[384952633,1757633482718,-400.0,0.00027671,7]
[384952634,1757633482728,-757.99,0.00027671,7]
[384952635,1757633482737,-2138.73,0.00027671,7]
[384952636,1757633482747,-400.0,0.00027671,7]
[384952637,1757633482758,-400.0,0.00027671,7]
[384952638,1757633482767,-400.0,0.00027671,7]
[384952639,1757633482777,-786.95,0.00027671,7]
[384952640,1757633482787,-400.0,0.00027671,7]
[384952641,1757633482797,-1080.19,0.00027671,7]
[384952642,1757633482807,-436.27,0.00027671,7]
[384952643,1757633482817,-400.0,0.00027671,7]
[384952644,1757633482827,-1408.38,0.00027671,7]
[384952645,1757633482837,-1679.93,0.00027671,7]
[384952646,1757633482847,-891.25,0.00027671,7]
[384952647,1757633482857,-400.0,0.00027671,7]
[384952648,1757633482868,-400.0,0.00027671,7]
[384952649,1757633482877,-1455.65,0.00027671,7]
[384952650,1757633482887,-1001.93,0.00027671,7]
[384952651,1757633482897,-911.04,0.00027671,7]
[384952652,1757633482908,-400.0,0.00027671,7]
[384952653,1757633482918,-1087.68,0.00027671,7]
[384952654,1757633482928,-2319.37,0.00027671,7]
[384952655,1757633482939,-400.0,0.00027671,7]
[384952656,1757633482949,-400.0,0.00027671,7]
[384952657,1757633482959,-870.67,0.00027671,7]
[384952658,1757633482969,-527.80183407,0.00027671,7]
[384952659,1757633482979,-4745.08,0.00027671,7]
[384952660,1757633482989,-1022.9,0.00027671,7]
[384952661,1757633482999,-400.0,0.00027671,7]
[384952662,1757633483009,-475.11,0.00027671,7]
[384952663,1757633483019,-910.89,0.00027671,7]
[384952664,1757633483029,-400.0,0.00027671,7]
[384952665,1757633483039,-400.0,0.00027671,7]
[384952666,1757633483049,-400.0,0.00027671,7]
[384952667,1757633483058,-400.0,0.00027671,7]
[384952668,1757633483068,-1292.66,0.00027671,7]
[384952669,1757633483078,-400.0,0.00027671,7]
[384952670,1757633483087,-1527.47,0.00027671,7]
[384952671,1757633483098,-400.0,0.00027671,7]
[384952672,1757633483110,-400.0,0.00027671,7]
[384952673,1757633483121,-400.0,0.00027671,7]
[384952674,1757633483131,-448.79,0.00027671,7]
[384952675,1757633483141,-1002.17,0.00027671,7]
[384952676,1757633483151,-464.58,0.00027671,7]
[384952677,1757633483162,-400.0,0.00027671,7]
[384952678,1757633483173,-400.0,0.00027671,7]
[384952679,1757633483183,-400.0,0.00027671,7]
[384952680,1757633483192,-1327.96,0.00027671,7]
[384952681,1757633483203,-903.38,0.00027671,7]
[384952682,1757633483213,-552.5,0.00027671,7]
[384952683,1757633483222,-400.0,0.00027671,7]
[384952684,1757633483230,-400.0,0.00027671,7]
[384952685,1757633483240,-400.0,0.00027671,7]
[384952686,1757633483249,-400.0,0.00027671,7]
[384952687,1757633483259,-1233.51,0.00027671,7]
[384952688,1757633483269,-400.0,0.00027671,7]
[384952689,1757633483278,-400.0,0.00027671,7]
[384952690,1757633483287,-400.0,0.00027671,7]
[384952691,1757633483296,-794.79,0.00027671,7]
[384952692,1757633483306,-400.0,0.00027671,7]
[384952693,1757633483315,-233.03513314,0.00027671,7]
[384952694,1757633483325,-431.41,0.00027671,7]
[384952695,1757633483335,-400.0,0.00027671,7]
[384952696,1757633483345,-300.0,0.00027671,7]
[384952697,1757633483354,-729.34,0.00027671,7]
[384952698,1757633483363,-607.94,0.00027671,7]
[384952699,1757633483373,-400.0,0.00027671,7]
[384952700,1757633483385,-474.99,0.00027671,7]
[384952702,1757633483397,-400.0,0.00027671,7]
[384952703,1757633483407,-950.4,0.00027671,7]
[384952704,1757633483417,-400.0,0.00027671,7]
[384952705,1757633483428,-1175.32,0.00027671,7]
[384952706,1757633483437,-1985.7,0.00027671,7]
[384952707,1757633483447,-400.0,0.00027671,7]
[384952708,1757633483457,-400.0,0.00027671,7]
[384952709,1757633483466,-400.0,0.00027671,7]
[384952710,1757633483476,-744.96,0.00027671,7]
[384952711,1757633483485,-892.33,0.00027671,7]
[384952712,1757633483495,-400.0,0.00027671,7]
[384952713,1757633483504,-400.0,0.00027671,7]
[384952714,1757633483514,-1438.81,0.00027671,7]
[384952715,1757633483523,-400.0,0.00027671,7]
[384952716,1757633483533,-400.0,0.00027671,7]
[384952717,1757633483543,-886.39,0.00027671,7]
[384952718,1757633483553,-657.15,0.00027671,7]
[384952719,1757633483562,-500.0,0.00027671,2]
[384952720,1757633483572,-1340.31,0.00027671,7]
[384952721,1757633483582,-998.3,0.00027671,7]
[384952722,1757633483877,-5647.79,0.00027671,7]
[384952723,1757633483887,-400.0,0.00027671,7]
[384952724,1757633483896,-400.0,0.00027671,7]
[384952725,1757633483907,-400.0,0.00027671,2]
[384952726,1757633483917,-632.61,0.00027671,7]
[384952727,1757633483932,-400.0,0.00027671,7]
[384952728,1757633483942,-1183.19,0.00027671,7]
[384952729,1757633483951,-1003.05,0.00027671,7]
[384952730,1757633483960,-400.0,0.00027671,7]
[384952731,1757633483971,-446.68,0.00027671,7]
[384952732,1757633483981,-400.0,0.00027671,7]
[384952733,1757633483991,-400.0,0.00027671,7]
[384952734,1757633484002,-400.0,0.00027671,7]
[384952735,1757633484011,-1000.57,0.00027671,7]
[384952736,1757633484021,-400.0,0.00027671,7]
[384952737,1757633484031,-1389.13,0.00027671,7]
[384952738,1757633484040,-1374.75,0.00027671,7]
[384952739,1757633484049,-965.62,0.00027671,7]
[384952740,1757633484059,-450.09,0.00027671,7]
[384952741,1757633484068,-1005.88,0.00027671,7]
[384952742,1757633484079,-579.26,0.00027671,7]
[384952743,1757633484088,-1667.9,0.00027671,7]
[384952744,1757633484098,-400.0,0.00027671,7]
[384952745,1757633484107,-400.0,0.00027671,7]
[384952746,1757633484117,-404.23544621,0.00027671,7]
[384952747,1757633484126,-528.32,0.00027671,7]
[384952748,1757633484135,-400.0,0.00027671,7]
[384952749,1757633484145,-1007.03,0.00027671,7]
[384952750,1757633484156,-400.0,0.00027671,7]
[384952751,1757633484167,-1098.51,0.00027671,7]
[384952752,1757633484177,-400.0,0.00027671,7]
[384952753,1757633484186,-1266.55,0.00027671,7]
[384952754,1757633484196,-2058.78,0.00027671,7]
[384952755,1757633484205,-400.0,0.00027671,7]
[384952756,1757633484214,-561.88,0.00027671,7]
[384952757,1757633484225,-775.26,0.00027671,7]
[384952758,1757633484236,-401.76199845,0.00027671,7]
[384952759,1757633484246,-400.0,0.00027671,7]
[384952760,1757633484256,-982.86,0.00027671,7]
[384952761,1757633484266,-400.0,0.00027671,7]
[384952762,1757633484276,-1094.3,0.00027671,7]
[384952763,1757633484285,-441.63,0.00027671,7]
[384952764,1757633484295,-400.0,0.00027671,7]
[384952765,1757633484305,-400.0,0.00027671,7]
[384952766,1757633484314,-400.0,0.00027671,7]
[384952767,1757633484324,-1269.26,0.00027671,7]
[384952768,1757633484334,-989.83,0.00027671,7]
[384952769,1757633484343,-1101.97,0.00027671,7]
[384952770,1757633484353,-854.63,0.00027671,7]
[384952771,1757633484363,-802.24,0.00027671,7]
[384952772,1757633484372,-1604.77,0.00027671,7]
[384952773,1757633484382,-1151.18,0.00027671,7]
[384952774,1757633484391,-400.0,0.00027671,7]
[384952775,1757633484401,-400.0,0.00027671,7]
[384952776,1757633484410,-861.19,0.00027671,7]
[384952777,1757633484420,-1298.19,0.00027671,7]
[384952778,1757633484430,-952.17,0.00027671,7]
[384952779,1757633484440,-400.0,0.00027671,7]
[384952780,1757633484450,-400.0,0.00027671,7]
[384952781,1757633484459,-2213.82,0.00027671,7]
[384952782,1757633484469,-2204.19,0.00027671,7]
[384952783,1757633484479,-400.0,0.00027671,7]
[384952784,1757633484488,-400.0,0.00027671,7]
[384952785,1757633484498,-400.0,0.00027671,7]
[384952786,1757633484509,-332.80653674,0.00027671,7]
[384952787,1757633484519,-400.0,0.00027671,7]
[384952788,1757633484528,-400.0,0.00027671,7]
[384952789,1757633484537,-406.49,0.00027671,7]
[384952790,1757633484547,-400.0,0.00027671,7]
[384952791,1757633484557,-1178.64,0.00027671,7]
[384952792,1757633484567,-754.57,0.00027671,7]
[384952793,1757633484577,-1273.24,0.00027671,7]
[384952794,1757633484587,-1522.42,0.00027671,7]
[384952795,1757633484596,-453.02,0.00027671,7]
[384952796,1757633484606,-400.0,0.00027671,7]
[384952797,1757633484615,-400.0,0.00027671,7]
[384952798,1757633484625,-949.12,0.00027671,7]
[384952799,1757633484634,-1083.88,0.00027671,7]
[384952800,1757633484643,-400.0,0.00027671,7]
[384952801,1757633484653,-1959.23,0.00027671,7]
[384952802,1757633484664,-1156.25,0.00027671,7]
[384952803,1757633484673,-1599.37,0.00027671,7]
[384952804,1757633484683,-1233.31,0.00027671,7]
[384952805,1757633484692,-591.65,0.00027671,7]
[384952806,1757633484702,-400.0,0.00027671,7]
[384952807,1757633484711,-400.0,0.00027671,7]
[384952808,1757633484721,-1169.6,0.00027671,7]
[384952809,1757633484730,-400.0,0.00027671,7]
[384952810,1757633484740,-609.33,0.00027671,7]
[384952811,1757633484749,-505.59,0.00027671,7]
[384952812,1757633484759,-400.0,0.00027671,7]
[384952813,1757633484769,-1184.35,0.00027671,7]
[384952814,1757633484778,-1314.36,0.00027671,7]
[384952815,1757633484788,-779.61,0.00027671,7]
[384952816,1757633484797,-2191.34,0.00027671,7]